fUST/lending_fUST_20240102
["ID","MTS","AMOUNT","RATE_DAILY","PERIOD"]
[309812358,1704161442846,-165.78781241,0.00041369,7]
[309812359,1704161442857,-500.0,0.00041369,7]
[309812360,1704161442866,-533.7215135,0.00041369,7]
[309812361,1704161442876,-500.0,0.00041369,7]
[309812362,1704161442886,-500.0,0.00041369,7]
[309812363,1704161442895,-500.0,0.00041369,7]
[309812365,1704161442905,-506.6352725,0.00041369,7]
[309812366,1704161442915,-500.0,0.00041369,7]
[309812367,1704161442924,-500.0,0.00041369,7]
[309812368,1704161442934,-500.0,0.00041369,7]
[309812369,1704161442944,-500.0,0.00041369,7]
[309812370,1704161442953,-510.22535791,0.00041369,7]
[309812371,1704161442962,-731.17,0.00041369,7]
[309812372,1704161442972,-52383.1,0.00041369,3]
[309812373,1704161442981,-174.03449883,0.00041369,7]
[309812374,1704161442990,-500.0,0.00041369,7]
[309812375,1704161442999,-150.0,0.00041369,7]
[309812376,1704161443008,-500.0,0.00041369,7]
[309812377,1704161443017,-500.0,0.00041369,7]
[309812378,1704161443027,-224.93691783,0.00041369,7]
[309812379,1704161443036,-273.32975873,0.00041369,7]
[309812380,1704161443045,-515.79862376,0.00041369,7]
[309812381,1704161443055,-703.47,0.00041369,7]
[309812383,1704161443064,-9947.87,0.00041369,7]
[309812384,1704161443073,-4001.31,0.00041369,7]
[309812385,1704161443082,-503.92146852,0.00041369,7]
[309812386,1704161443092,-4004.8,0.00041369,7]
[309812387,1704161443101,-505.73973288,0.00041369,7]
[309812388,1704161443110,-500.0,0.00041369,7]
[309812389,1704161443120,-4731.56,0.00041369,7]
[309812390,1704161443130,-500.0,0.00041369,7]
[309812391,1704161443139,-511.93036675,0.00041369,7]
[309812392,1704161443148,-500.0,0.00041369,7]
[309812393,1704161443157,-500.0,0.00041369,7]
[309812394,1704161443167,-500.0,0.00041369,7]
[309812395,1704161443176,-240.67710296,0.00041369,7]
[309812396,1704161443186,-511.53076204,0.00041369,7]
[309812397,1704161443195,-1028.73,0.00041369,7]
[309812398,1704161443204,-500.0,0.00041369,7]
[309812399,1704161443214,-500.0,0.00041369,7]
[309812400,1704161443223,-715.54,0.00041369,7]
[309812401,1704161443232,-2475.03,0.00041369,7]
[309812402,1704161443244,-500.0,0.00041369,7]
[309812403,1704161443255,-500.0,0.00041369,7]
[309812404,1704161443265,-727.24,0.00041369,7]
[309812405,1704161443276,-1262.83439,0.00041369,7]
[309812406,1704161443286,-1262.83439,0.00041369,7]
[309812407,1704161443297,-210.637501,0.00041369,7]
[309812408,1704161443307,-210.637501,0.00041369,7]
[309812409,1704161443317,-500.0,0.00041506,7]
[309812410,1704161443326,-500.0,0.00041506,2]
[309812411,1704161443335,-2371.14,0.00041506,7]
[309812412,1704161443345,-500.0,0.00041506,7]
[309812413,1704161443356,-500.0,0.00041506,7]
[309812414,1704161443366,-500.0,0.00041506,7]
[309812415,1704161443376,-500.0,0.00041506,7]
[309812416,1704161443386,-2141.32,0.00041506,7]
[309812417,1704161443396,-500.0,0.00041506,7]
[309812418,1704161443407,-1194.12,0.00041506,7]
[309812419,1704161443417,-500.0,0.00041506,7]
[309812420,1704161443426,-500.0,0.00041506,7]
[309812421,1704161443436,-500.0,0.00041506,7]
[309812422,1704161443445,-601.16,0.00041506,7]
[309812423,1704161443454,-500.0,0.00041506,7]
[309812424,1704161443464,-1063.06,0.00041506,7]
[309812425,1704161443474,-500.0,0.00041506,7]
[309812426,1704161443483,-3652.92,0.00041506,7]
[309812427,1704161443493,-929.38,0.00041506,7]
[309812428,1704161443502,-529.12493076,0.00041506,7]
[309812429,1704161443511,-690.43,0.00041506,7]
[309812430,1704161443520,-500.0,0.00041506,7]
[309812431,1704161443531,-500.0,0.00041506,7]
[309812432,1704161443541,-504.08608425,0.00041506,7]
[309812433,1704161443550,-500.0,0.00041506,7]
[309812434,1704161443560,-500.0,0.00041506,7]
[309812435,1704161443569,-562.67162828,0.00041506,7]
[309812436,1704161443579,-500.0,0.00041506,7]
[309812437,1704161443589,-500.0,0.00041506,7]
[309812438,1704161443599,-500.0,0.00041506,7]
[309812439,1704161443609,-731.17,0.00041506,7]
[309812440,1704161443619,-52383.1,0.00041506,3]
[309812441,1704161443629,-598.99639577,0.00041506,7]
[309812442,1704161443638,-151.78099293,0.00041506,7]
[309812443,1704161443647,-500.0,0.00041506,7]
[309812444,1704161443656,-156.24147642,0.00041506,7]
[309812445,1704161443666,-703.47,0.00041506,7]
[309812446,1704161443675,-9947.87,0.00041506,7]
[309812447,1704161443685,-4001.31,0.00041506,7]
[309812448,1704161443698,-4004.8,0.00041506,7]
[309812449,1704161443707,-304.47690849,0.00041506,7]
[309812450,1704161443716,-4731.56,0.00041506,7]
[309812451,1704161443725,-500.0,0.00041506,7]
[309812452,1704161443735,-500.0,0.00041506,7]
[309812453,1704161443744,-323.57459987,0.00041506,7]
[309812454,1704161443754,-517.04843179,0.00041506,7]
[309812455,1704161443763,-1028.73,0.00041506,7]
[309812456,1704161443774,-500.0,0.00041506,7]
[309812457,1704161443783,-500.0,0.00041506,7]
[309812458,1704161443795,-715.54,0.00041506,7]
[309812459,1704161443804,-2475.03,0.00041506,7]
[309812460,1704161443813,-500.0,0.00041506,7]
[309812461,1704161443822,-500.0,0.00041506,7]
[309812462,1704161443831,-727.24,0.00041506,7]
[309812463,1704161443840,-210.637501,0.00041506,7]
[309812464,1704161443849,-210.637501,0.00041506,7]
[309812465,1704161443862,-590.493153,0.00041553,120]
[309812466,1704161443872,-1500.0,0.000416,3]
[309812467,1704161443883,-1262.83439,0.00041633,7]
[309812468,1704161443892,-1262.83439,0.00041633,7]
[309812469,1704161443902,-500.0,0.00041643,7]
[309812470,1704161443911,-500.0,0.00041643,2]
[309812471,1704161443921,-2371.14,0.00041643,7]
[309812472,1704161443931,-500.0,0.00041643,7]
[309812473,1704161443941,-500.0,0.00041643,7]
[309812474,1704161443950,-500.0,0.00041643,7]
[309812475,1704161443960,-500.0,0.00041643,7]
[309812476,1704161443970,-2141.32,0.00041643,7]
[309812477,1704161443981,-500.0,0.00041643,7]
[309812478,1704161443990,-1194.12,0.00041643,7]
[309812479,1704161443999,-500.0,0.00041643,7]
[309812480,1704161444009,-500.0,0.00041643,7]
[309812481,1704161444018,-500.0,0.00041643,7]
[309812482,1704161444028,-601.16,0.00041643,7]
[309812483,1704161444037,-500.0,0.00041643,7]
[309812484,1704161444047,-1063.06,0.00041643,7]
[309812485,1704161444056,-534.66263788,0.00041643,7]
[309812486,1704161444066,-3652.92,0.00041643,7]
[309812487,1704161444075,-929.38,0.00041643,7]
[309812488,1704161444084,-690.43,0.00041643,7]
[309812489,1704161444094,-500.0,0.00041643,7]
[309812490,1704161444103,-500.0,0.00041643,7]
[309812491,1704161444112,-500.0,0.00041643,7]
[309812492,1704161444122,-500.0,0.00041643,7]
[309812493,1704161444132,-500.0,0.00041643,7]
[309812494,1704161444141,-500.0,0.00041643,7]
[309812495,1704161444150,-395.96560805,0.00041643,7]
[309812496,1704161444160,-52383.1,0.00041643,3]
[309812497,1704161444169,-731.17,0.00041643,7]
[309812498,1704161444178,-500.0,0.00041643,7]
[309812499,1704161444187,-703.47,0.00041643,7]
[309812500,1704161444196,-9947.87,0.00041643,7]
[309812501,1704161444206,-4001.31,0.00041643,7]
[309812502,1704161444215,-4004.8,0.00041643,7]
[309812503,1704161444224,-4731.56,0.00041643,7]
[309812504,1704161444232,-500.0,0.00041643,7]
[309812505,1704161444242,-500.0,0.00041643,7]
[309812506,1704161444251,-1028.73,0.00041643,7]
[309812507,1704161444261,-500.0,0.00041643,7]
[309812508,1704161444270,-500.0,0.00041643,7]
[309812509,1704161444279,-715.54,0.00041643,7]
[309812510,1704161444288,-2475.03,0.00041643,7]
[309812511,1704161444297,-500.0,0.00041643,7]
[309812512,1704161444376,-371.7537333,0.00041643,7]
[309812513,1704161444387,-727.24,0.00041643,7]
[309812514,1704161444396,-210.637501,0.00041643,7]
[309812515,1704161444405,-210.637501,0.00041643,7]
[309812516,1704161444414,-1262.83439,0.00041739,7]
[309812517,1704161444423,-1262.83439,0.00041739,7]
[309812518,1704161444432,-3598.55056422,0.00041739,2]
[309812519,1704161444441,-3598.55056422,0.00041739,2]
[309812520,1704161444451,-3598.55056422,0.00041739,2]
[309812521,1704161444461,-3598.55056422,0.00041739,2]
[309812522,1704161444470,-3598.55056422,0.00041739,2]
[309812523,1704161444479,-3598.55056422,0.00041739,2]
[309812524,1704161444488,-3598.55056422,0.00041739,2]
[309812525,1704161444497,-3598.55056422,0.00041739,2]
[309812526,1704161444506,-3598.55056422,0.00041739,2]
[309812527,1704161444516,-3598.55056422,0.00041739,2]
[309812528,1704161444525,-155.0,0.0004174,2]
[309812529,1704161444534,-500.0,0.0004178,7]
[309812530,1704161444543,-500.0,0.0004178,2]
[309812531,1704161444552,-2371.14,0.0004178,7]
[309812532,1704161444561,-428.49624479,0.0004178,7]
[309812533,1704161444570,-639.94712464,0.0004178,7]
[309812534,1704161444579,-500.0,0.0004178,7]
[309812535,1704161444589,-500.0,0.0004178,7]
[309812536,1704161444598,-2141.32,0.0004178,7]
[309812537,1704161444607,-1262.83439,0.0004178,7]
[309812538,1704161444616,-1262.83439,0.0004178,7]
[309812539,1704161444628,-607.07533651,0.0004178,7]
[309812540,1704161444638,-1194.12,0.0004178,7]
[309812541,1704161444647,-500.0,0.0004178,7]
[309812542,1704161444657,-500.0,0.0004178,7]
[309812543,1704161444668,-500.0,0.0004178,7]
[309812544,1704161444678,-601.16,0.0004178,7]
[309812545,1704161444687,-500.0,0.0004178,7]
[309812546,1704161444696,-1063.06,0.0004178,7]
[309812547,1704161444706,-3652.92,0.0004178,7]
[309812548,1704161444715,-929.38,0.0004178,7]
[309812549,1704161444724,-210.637501,0.0004178,7]
[309812550,1704161444733,-210.637501,0.0004178,7]
[309812551,1704161444742,-690.43,0.0004178,7]
[309812552,1704161444753,-500.0,0.0004178,7]
[309812553,1704161444763,-506.92236608,0.0004178,7]
[309812554,1704161444773,-500.0,0.0004178,7]
[309812555,1704161444782,-500.0,0.0004178,7]
[309812556,1704161444791,-500.0,0.0004178,7]
[309812557,1704161444800,-500.0,0.0004178,7]
[309812558,1704161444809,-731.17,0.0004178,7]
[309812559,1704161444818,-52383.1,0.0004178,3]
[309812560,1704161444828,-500.0,0.0004178,7]
[309812561,1704161444837,-703.47,0.0004178,7]
[309812562,1704161444846,-9947.87,0.0004178,7]
[309812563,1704161444854,-4001.31,0.0004178,7]
[309812564,1704161444863,-4004.8,0.0004178,7]
[309812565,1704161444873,-4731.56,0.0004178,7]
[309812566,1704161444883,-479.3041618,0.0004178,7]
[309812567,1704161444893,-510.96560856,0.0004178,7]
[309812568,1704161444903,-1028.73,0.0004178,7]
[309812569,1704161444912,-500.0,0.0004178,7]
[309812570,1704161444922,-500.0,0.0004178,7]
[309812571,1704161444931,-715.54,0.0004178,7]
[309812572,1704161444940,-2475.03,0.0004178,7]
[309812573,1704161444949,-500.0,0.0004178,7]
[309812574,1704161444958,-151.0,0.0004178,2]
[309812575,1704161444967,-727.24,0.0004178,7]
[309812576,1704161444976,-158.0,0.0004179,2]
[309812577,1704161444985,-250.0,0.0004179,2]
[309812578,1704161444993,-349.95,0.0004179,2]
[309812579,1704161445003,-150.81901718,0.00041863,2]
[309812580,1704161445012,-245.38671896,0.00041916,4]
[309812581,1704161445021,-151.0,0.00041917,2]
[309812582,1704161445031,-500.0,0.00041917,7]
[309812583,1704161445040,-500.0,0.00041917,2]
[309812584,1704161445050,-2371.14,0.00041917,7]
[309812585,1704161445059,-500.0,0.00041917,7]
[309812586,1704161445069,-500.0,0.00041917,7]
[309812587,1704161445078,-2141.32,0.00041917,7]
[309812588,1704161445087,-1194.12,0.00041917,7]
[309812589,1704161445096,-500.0,0.00041917,7]
[309812590,1704161445107,-500.0,0.00041917,7]
[309812591,1704161445116,-500.0,0.00041917,7]
[309812592,1704161445125,-601.16,0.00041917,7]
[309812593,1704161445135,-500.0,0.00041917,7]
[309812594,1704161445144,-1063.06,0.00041917,7]
[309812595,1704161445154,-3652.92,0.00041917,7]
[309812596,1704161445163,-929.38,0.00041917,7]
[309812597,1704161445172,-690.43,0.00041917,7]
[309812598,1704161445181,-500.0,0.00041917,7]
[309812599,1704161445191,-356.24399595,0.00041917,7]
[309812600,1704161445200,-500.0,0.00041917,7]
[309812601,1704161445209,-500.0,0.00041917,7]
[309812602,1704161445218,-500.0,0.00041917,7]
[309812603,1704161445228,-731.17,0.00041917,7]
[309812604,1704161445236,-52383.1,0.00041917,3]
[309812605,1704161445246,-500.0,0.00041917,7]
[309812606,1704161445255,-703.47,0.00041917,7]
[309812607,1704161445264,-9947.87,0.00041917,7]
[309812608,1704161445273,-4001.31,0.00041917,7]
[309812609,1704161445282,-4004.8,0.00041917,7]
[309812610,1704161445291,-4731.56,0.00041917,7]
[309812611,1704161445300,-1028.73,0.00041917,7]
[309812612,1704161445310,-500.0,0.00041917,7]
[309812613,1704161445319,-500.0,0.00041917,7]
[309812614,1704161445328,-715.54,0.00041917,7]
[309812615,1704161445337,-2475.03,0.00041917,7]
[309812616,1704161445346,-500.0,0.00041917,7]
[309812617,1704161445355,-175.40794728,0.00041917,7]
[309812618,1704161445370,-551.83205272,0.00041917,7]
[309812619,1704161445380,-200.0,0.00041969,2]
[309812620,1704161445389,-150.28,0.00041989,7]
[309812621,1704161445398,-151.13843815,0.00041994,60]
[309812622,1704161445408,-1262.83439,0.00042,7]
[309812623,1704161445417,-1262.83439,0.00042,7]
[309812624,1704161445426,-523.47885684,0.00042,10]
[309812625,1704161445435,-210.637501,0.00042,7]
[309812626,1704161445444,-210.637501,0.00042,7]
[309812627,1704161445453,-1969.87900778,0.00042,15]
[309812628,1704161445462,-18417.94235798,0.00042,15]
[309812629,1704161445471,-1049.67742489,0.00042,15]
[309812630,1704161445481,-1212.27201013,0.00042052,4]
[309812631,1704161445490,-1876.1935479,0.00042052,4]
[309812632,1704161445498,-708.51298176,0.00042052,4]
[309812633,1704161445507,-277.82577422,0.00042052,4]
[309812634,1704161445517,-267.00860455,0.00042052,4]
[309812635,1704161445526,-245.15707609,0.00042052,4]
[309812636,1704161445535,-252.84112021,0.00042052,4]
[309812637,1704161445544,-230.57699369,0.00042052,4]
[309812638,1704161445553,-309.61298454,0.00042052,2]
[309812639,1704161445562,-155.80741963,0.00042052,4]
[309812640,1704161445571,-612.33111359,0.00042052,4]
[309812641,1704161445580,-154.99459231,0.00042052,7]
[309812642,1704161445589,-180.16890594,0.00042052,2]
[309812643,1704161445598,-190.71980737,0.00042052,4]
[309812644,1704161445607,-1078.48328217,0.00042052,4]
[309812645,1704161445616,-210.637501,0.00042054,7]
[309812646,1704161445625,-210.637509,0.00042054,7]
[309812647,1704161445636,-500.0,0.00042054,7]
[309812648,1704161445645,-500.0,0.00042054,2]
[309812649,1704161445654,-2371.14,0.00042054,7]
[309812650,1704161445663,-500.0,0.00042054,7]
[309812651,1704161445672,-500.0,0.00042054,7]
[309812652,1704161445681,-2141.32,0.00042054,7]
[309812653,1704161445690,-1194.12,0.00042054,7]
[309812654,1704161445699,-500.0,0.00042054,7]
[309812655,1704161445709,-497.87121471,0.00042054,7]
[309812656,1704161445718,-500.0,0.00042054,7]
[309812657,1704161445727,-601.16,0.00042054,7]
[309812658,1704161445736,-500.0,0.00042054,7]
[309812659,1704161445745,-1063.06,0.00042054,7]
[309812660,1704161445755,-3652.92,0.00042054,7]
[309812661,1704161445764,-929.38,0.00042054,7]
[309812663,1704161445772,-690.43,0.00042054,7]
[309812665,1704161445781,-500.0,0.00042054,7]
[309812666,1704161445790,-500.0,0.00042054,7]
[309812667,1704161445799,-558.58932103,0.00042054,7]
[309812668,1704161445808,-500.0,0.00042054,7]
[309812669,1704161445817,-731.17,0.00042054,7]
[309812670,1704161445827,-52383.1,0.00042054,3]
[309812671,1704161445836,-500.0,0.00042054,7]
[309812672,1704161445845,-703.47,0.00042054,7]
[309812673,1704161445854,-9947.87,0.00042054,7]
[309812674,1704161445863,-4001.31,0.00042054,7]
[309812675,1704161445873,-4004.8,0.00042054,7]
[309812676,1704161445883,-4731.56,0.00042054,7]
[309812677,1704161445891,-1028.73,0.00042054,7]
[309812678,1704161445900,-500.0,0.00042054,7]
[309812679,1704161445909,-500.0,0.00042054,7]
[309812680,1704161445918,-715.54,0.00042054,7]
[309812681,1704161445928,-2475.03,0.00042054,7]
[309812682,1704161445937,-500.0,0.00042054,7]
[309812683,1704161445946,-727.24,0.00042054,7]
[309812684,1704161445955,-395.14071568,0.00042095,30]
[309812685,1704161445965,-311.2719896,0.00042097,2]
[309812686,1704161445974,-2000.0,0.00042148,2]
[309812687,1704161445984,-2000.0,0.00042148,2]
[309812688,1704161445993,-215.52406618,0.00042189,4]
[309812689,1704161446002,-930.9742298,0.00042189,4]
[309812690,1704161446011,-155.16028241,0.00042189,20]
[309812691,1704161446021,-2699.60657845,0.00042189,4]
[309812692,1704161446030,-154.95012524,0.00042189,4]
[309812693,1704161446039,-255.0701372,0.00042189,4]
[309812694,1704161446048,-309.59752322,0.00042189,4]
[309812695,1704161446057,-161.78435298,0.00042189,4]
[309812696,1704161446067,-269.52607254,0.00042189,4]
[309812697,1704161446076,-193.66234305,0.00042189,4]
[309812698,1704161446085,-283.71719471,0.00042189,4]
[309812699,1704161446159,-1262.83439,0.00042191,7]
[309812700,1704161446169,-1262.834382,0.00042191,7]
[309812701,1704161446179,-151.0,0.00042191,2]
[309812702,1704161446189,-502.22108478,0.00042191,2]
[309812703,1704161446198,-2371.14,0.00042191,7]
[309812704,1704161446208,-500.0,0.00042191,7]
[309812705,1704161446218,-500.0,0.00042191,7]
[309812706,1704161446227,-2141.32,0.00042191,7]
[309812707,1704161446237,-1194.12,0.00042191,7]
[309812708,1704161446246,-500.0,0.00042191,7]
[309812709,1704161446256,-242.4554599,0.00042191,7]
[309812710,1704161446265,-601.16,0.00042191,7]
[309812711,1704161446274,-500.0,0.00042191,7]
[309812712,1704161446283,-1063.06,0.00042191,7]
[309812713,1704161446292,-3652.92,0.00042191,7]
[309812714,1704161446301,-929.38,0.00042191,7]
[309812715,1704161446310,-690.43,0.00042191,7]
[309812716,1704161446320,-500.0,0.00042191,7]
[309812717,1704161446329,-500.0,0.00042191,7]
[309812718,1704161446338,-500.0,0.00042191,7]
[309812719,1704161446347,-731.17,0.00042191,7]
[309812720,1704161446356,-49710.56212764,0.00042191,3]
[309812721,1704161446369,-2672.53787236,0.00042191,3]
[309812722,1704161446380,-500.0,0.00042191,7]
[309812723,1704161446389,-703.47,0.00042191,7]
[309812724,1704161446398,-9947.87,0.00042191,7]
[309812725,1704161446407,-4001.31,0.00042191,7]
[309812726,1704161446416,-4004.8,0.00042191,7]
[309812727,1704161446426,-4731.56,0.00042191,7]
[309812728,1704161446436,-1028.73,0.00042191,7]
[309812729,1704161446445,-500.0,0.00042191,7]
[309812730,1704161446454,-500.0,0.00042191,7]
[309812731,1704161446464,-715.54,0.00042191,7]
[309812732,1704161446474,-2475.03,0.00042191,7]
[309812733,1704161446483,-500.0,0.00042191,7]
[309812734,1704161446492,-727.24,0.00042191,7]
[309812735,1704161446501,-151.0,0.00042252,21]
[309812736,1704161446510,-2371.14,0.00042328,7]
[309812737,1704161446520,-500.0,0.00042328,7]
[309812738,1704161446529,-500.0,0.00042328,7]
[309812739,1704161446538,-2141.32,0.00042328,7]
[309812740,1704161446548,-1194.12,0.00042328,7]
[309812741,1704161446557,-500.0,0.00042328,7]
[309812742,1704161446566,-601.16,0.00042328,7]
[309812743,1704161446576,-583.57222015,0.00042328,7]
[309812744,1704161446585,-1063.06,0.00042328,7]
[309812745,1704161446594,-3652.92,0.00042328,7]
[309812746,1704161446602,-929.38,0.00042328,7]
[309812747,1704161446611,-690.43,0.00042328,7]
[309812748,1704161446621,-500.0,0.00042328,7]
[309812749,1704161446632,-500.0,0.00042328,7]
[309812750,1704161446641,-500.0,0.00042328,7]
[309812751,1704161446651,-731.17,0.00042328,7]
[309812752,1704161446660,-51752.18505253,0.00042328,3]
[309812753,1704161446672,-630.91494747,0.00042328,3]
[309812754,1704161446681,-226.76964385,0.00042328,7]
[309812755,1704161446697,-273.23035615,0.00042328,7]
[309812756,1704161446707,-703.47,0.00042328,7]
[309812757,1704161446715,-9947.87,0.00042328,7]
[309812758,1704161446724,-4001.31,0.00042328,7]
[309812759,1704161446733,-4004.8,0.00042328,7]
[309812760,1704161446742,-4731.56,0.00042328,7]
[309812761,1704161446752,-1028.73,0.00042328,7]
[309812762,1704161446761,-500.0,0.00042328,7]
[309812763,1704161446771,-500.0,0.00042328,7]
[309812764,1704161446781,-715.54,0.00042328,7]
[309812765,1704161446791,-2475.03,0.00042328,7]
[309812766,1704161446799,-500.0,0.00042328,7]
[309812767,1704161446809,-1593.7330011,0.000424,120]
[309812768,1704161446819,-213.544295,0.00042414,30]
[309812769,1704161446829,-153.0,0.00042433,2]
[309812770,1704161446838,-153.0,0.00042433,2]
[309812771,1704161446848,-151.0,0.00042465,2]
[309812772,1704161446857,-2371.14,0.00042465,7]
[309812773,1704161446866,-500.0,0.00042465,7]
[309812774,1704161446876,-500.0,0.00042465,7]
[309812775,1704161446887,-179.90619096,0.00042465,3]
[309812776,1704161446897,-2141.32,0.00042465,7]
[309812777,1704161446908,-1194.12,0.00042465,7]
[309812778,1704161446918,-514.33052023,0.00042465,7]
[309812779,1704161446928,-601.16,0.00042465,7]
[309812780,1704161446938,-1063.06,0.00042465,7]
[309812781,1704161446947,-3652.92,0.00042465,7]
[309812782,1704161446956,-929.38,0.00042465,7]
[309812783,1704161446965,-690.43,0.00042465,7]
[309812784,1704161446974,-500.0,0.00042465,7]
[309812785,1704161446984,-500.0,0.00042465,7]
[309812786,1704161446993,-500.0,0.00042465,7]
[309812787,1704161447004,-731.17,0.00042465,7]
[309812788,1704161447013,-46627.39467656,0.00042465,3]
[309812789,1704161447160,-727.24,0.00042328,7]
[309812790,1704161447170,-524.30421534,0.00042465,3]
[309812791,1704161447184,-2260.68532229,0.00042465,3]
[309812792,1704161447195,-2970.71578581,0.00042465,3]
[309812793,1704161447205,-500.0,0.00042465,15]
[309812794,1704161447214,-500.0,0.00042465,7]
[309812795,1704161447224,-703.47,0.00042465,7]
[309812796,1704161447233,-9947.87,0.00042465,7]
[309812797,1704161447243,-4001.31,0.00042465,7]
[309812798,1704161447252,-4004.8,0.00042465,7]
[309812799,1704161447261,-4731.56,0.00042465,7]
[309812800,1704161447271,-1028.73,0.00042465,7]
[309812801,1704161447280,-500.0,0.00042465,7]
[309812802,1704161447290,-500.0,0.00042465,7]
[309812803,1704161447299,-715.54,0.00042465,7]
[309812804,1704161447309,-2475.03,0.00042465,7]
[309812805,1704161447318,-500.0,0.00042465,7]
[309812806,1704161447327,-727.24,0.00042465,7]
[309812807,1704161447336,-153.0,0.00042503,2]
[309812808,1704161447345,-301.63803436,0.00042567,4]
[309812809,1704161447354,-308.151804,0.000426,22]
[309812810,1704161447363,-1500.0,0.000426,3]
[309812811,1704161447373,-2371.14,0.00042602,7]
[309812812,1704161447384,-485.42536585,0.00042602,7]
[309812813,1704161447393,-500.0,0.00042602,7]
[309812814,1704161447402,-1194.12,0.00042602,7]
[309812815,1704161447411,-601.16,0.00042602,7]
[309812816,1704161447420,-1063.06,0.00042602,7]
[309812817,1704161447429,-3652.92,0.00042602,7]
[309812818,1704161447438,-929.38,0.00042602,7]
[309812819,1704161447447,-690.43,0.00042602,7]
[309812820,1704161447456,-500.0,0.00042602,7]
[309812821,1704161447465,-500.0,0.00042602,7]
[309812822,1704161447474,-500.0,0.00042602,7]
[309812823,1704161447483,-26318.34440998,0.00042602,3]
[309812824,1704161447518,-304.83848844,0.00041094,4]
[309812825,1704161447527,-3895.99156156,0.00042602,3]
[309812826,1704161447540,-418.50099124,0.00042602,3]
[309812843,1704161449457,-385.09268139,0.00036,2]
[309812846,1704161449466,-196.4540866,0.00041094,4]
[309812849,1704161449476,-748.67688589,0.00041367,4]
[309812852,1704161449485,-268.50780013,0.00041367,4]
[309812855,1704161449494,-42.79152717,0.00041368,2]
[309812859,1704161449506,-212.06054975,0.00041368,2]
[309812862,1704161449515,-308.05693578,0.00041368,4]
[309812865,1704161449525,-242.918384,0.00041368,4]
[309812867,1704161449534,-15212.65121047,0.00042602,3]
[309812869,1704161449546,-6537.61182675,0.00042602,3]
[309812871,1704161449555,-731.17,0.00042602,7]
[309812873,1704161449564,-272.14389889,0.00042602,7]
[309812875,1704161449573,-703.47,0.00042602,7]
[309812877,1704161449584,-9947.87,0.00042602,7]
[309812879,1704161449593,-4001.31,0.00042602,7]
[309812881,1704161449602,-4004.8,0.00042602,7]
[309812883,1704161449612,-4731.56,0.00042602,7]
[309812885,1704161449621,-1028.73,0.00042602,7]
[309812887,1704161449632,-500.0,0.00042602,7]
[309812889,1704161449641,-500.0,0.00042602,7]
[309812891,1704161449652,-715.54,0.00042602,7]
[309812900,1704161449714,-2475.03,0.00042602,7]
[309812902,1704161449731,-500.0,0.00042602,7]
[309812904,1704161449741,-727.24,0.00042602,7]
[309812906,1704161449752,-244.69723579,0.000427,30]
[309812907,1704161449762,-803.0,0.00042707,60]
[309812908,1704161449771,-803.0,0.00042717,60]
[309812909,1704161449780,-803.0,0.00042727,60]
[309812910,1704161449788,-399.00395613,0.00042737,4]
[309812911,1704161449798,-309.62844586,0.00042737,4]
[309812912,1704161449807,-151.0,0.00042739,2]
[309812913,1704161449816,-320.67707786,0.00042739,14]
[309812914,1704161449825,-165.73415178,0.00042739,14]
[309812915,1704161449834,-500.0,0.00042739,2]
[309812916,1704161449844,-500.0,0.00042739,2]